[Event "FIDE World Cadets GU12 2022"]
[Site "Batumi"]
[Date "2022.09.19"]
[Round "4.16"]
[White "Zarkym, Ailin"]
[Black "Shreya G Hipparagi"]
[Result "0-1"]
[ECO "C26"]
[WhiteElo "1376"]
[BlackElo "1574"]
[Annotator "NA RC COMBH"]
[PlyCount "100"]
[EventDate "2022.09.16"]
[EventType "swiss"]
[EventCountry "GEO"]
[SourceTitle "playchess.com"]
[Source "ChessBase"]
[SourceQuality "1"]
[TimeControl "5400+30"]

1. e4 {[%emt 0:07:00]} e5 {[%emt 0:01:00]} 2. Nc3 {[%emt 0:00:30]} Nc6 {[%emt 0:00:30]} 3. g3 {[%emt 0:00:00]} Bc5 {[%emt 0:01:30]} 4. Bg2 {[%emt 0:00:00]} Nf6 {[%emt 0:00:30]} 5. Nge2 {[%emt 0:00:30]} O-O {[%emt 0:04:30]} 6. O-O {[%emt 0:00:30]} d6 {[%emt 0:01:30]} 7. d3 {[%emt 0:00:00]} Be6 {[%emt 0:03:30]} 8. Nd5 {[%emt 0:00:00]} Bxd5 {[%emt 0:02:30]} 9. exd5 {[%emt 0:00:30]} Nd4 {[%emt 0:00:30]} 10. Nxd4 {[%emt 0:00:30]} Bxd4 {[%emt 0:00:00]} 11. c3 {[%emt 0:01:30]} Bb6 {[%emt 0:01:00]} 12. h3 {[%emt 0:01:30]} Nd7 {[%emt 0:02:30]} 13. a4 {[%emt 0:00:30]} a5 {[%emt 0:01:30]} 14. Kh2 {[%emt 0:00:30]} f5 {[%emt 0:07:30]} 15. f4 {[%emt 0:01:30]} Qe7 {[%emt 0:08:30]} 16. Qc2 {[%emt 0:03:30]} Rae8 {[%emt 0:00:30]} 17. fxe5 {[%emt 0:02:30]} dxe5 {[%emt 0:02:30]} 18. b3 {[%emt 0:05:30]} e4 {[%emt 0:02:30]} 19. dxe4 {[%emt 0:01:30]} fxe4 {[%emt 0:00:30]} 20. Bf4 {[%emt 0:01:30]} g5 21. Bxg5 {[%emt 0:06:30]} Qxg5 {[%emt 0:02:00]} 22. Bxe4 {[%emt 0:00:00]} Nf6 {[%emt 0:01:30]} 23. Rf5 {[%emt 0:06:00]} Qg7 {[%emt 0:02:30]} 24. Bf3 {[%emt 0:00:30]} Nd7 {[%emt 0:01:30]} 25. Bh5 {[%emt 0:01:30]} Rxf5 {[%emt 0:01:30]} 26. Qxf5 {[%emt 0:00:30]} Re5 {[%emt 0:00:30]} 27. Qf3 {[%emt 0:01:30]} Nf6 {[%emt 0:01:30]} 28. Bg4 {[%emt 0:01:30]} Nxg4+ {[%emt 0:00:30]} 29. hxg4 {[%emt 0:00:30]} Re3 {[%emt 0:00:00]} 30. Qf4 {[%emt 0:01:30]} Qe5 {[%emt 0:02:00]} 31. Qxe5 {[%emt 0:02:30]} Rxe5 {[%emt 0:00:30]} 32. c4 {[%emt 0:00:30]} Re3 {[%emt 0:00:30]} 33. Rb1 {[%emt 0:00:00]} Bc5 {[%emt 0:00:30]} 34. Kg2 {[%emt 0:00:00]} Bd6 {[%emt 0:00:00]} 35. Kf2 {[%emt 0:00:30]} Rc3 {[%emt 0:00:00]} 36. Rb2 {[%emt 0:01:30]} Kf7 {[%emt 0:00:30]} 37. Ke1 {[%emt 0:05:30]} Rxg3 {[%emt 0:02:30]} 38. Kd1 {[%emt 0:01:30]} Rxg4 {[%emt 0:00:30]} 39. Rf2+ {[%emt 0:00:30]} Kg6 {[%emt 0:00:30]} 40. Re2 {[%emt 0:00:00]} h5 {[%emt 0:00:00]} 41. Re8 {[%emt 0:02:00]} Kf5 {[%emt 0:01:00]} 42. Rh8 {[%emt 0:00:30]} h4 {[%emt 0:00:00]} 43. Ke2 {[%emt 0:01:30]} Rg2+ {[%emt 0:00:00]} 44. Kf1 {[%emt 0:00:30]} Rh2 {[%emt 0:00:30]} 45. Kg1 {[%emt 0:00:00]} Kg4 {[%emt 0:00:30]} 46. c5 {[%emt 0:00:00]} Bg3 {[%emt 0:00:30]} 47. Rg8+ {[%emt 0:00:30]} Kh3 {[%emt 0:00:00]} 48. Rf8 {[%emt 0:01:30]} Rd2 {[%emt 0:00:00]} 49. c6 {[%emt 0:00:30]} bxc6 {[%emt 0:00:30]} 50. dxc6 {[%emt 0:00:30]} Rc2 {[%emt 0:00:00]} 0-1

[Event "FIDE World Cadets GU12 2022"]
[Site "Batumi"]
[Date "2022.09.19"]
[Round "4.17"]
[White "Huseynli, Ayan"]
[Black "Shimanskaia, Tatiana"]
[Result "1/2-1/2"]
[ECO "D00"]
[WhiteElo "1572"]
[BlackElo "1353"]
[Annotator "NA COMBH"]
[PlyCount "115"]
[EventDate "2022.09.16"]
[EventType "swiss"]
[EventCountry "GEO"]
[SourceTitle "playchess.com"]
[Source "ChessBase"]
[SourceQuality "1"]
[TimeControl "5400+30"]

1. d4 Nf6 2. e3 g6 3. Bd3 d5 4. Nd2 Bg7 5. f4 c5 6. c3 O-O 7. Ngf3 b6 8. Ne5 Qd6 9. O-O Ba6 10. Bxa6 Nxa6 11. Qf3 Nc7 12. a4 Nd7 13. Qh3 Nxe5 14. fxe5 Qe6 15. Qxe6 Nxe6 16. Nf3 a6 17. b3 Bh6 18. c4 cxd4 19. cxd5 Nc7 20. e4 Bg7 21. Bb2 b5 22. Bxd4 bxa4 23. bxa4 f5 24. exf6 exf6 25. Rac1 Rfc8 26. Rc6 Ne8 27. Rfc1 Nd6 28. Rxc8+ Rxc8 29. Rxc8+ Nxc8 30. Bc5 Bf8 31. Bxf8 Kxf8 32. a5 Ke7 33. Kf2 Nd6 34. Nd2 Nb5 35. Ke3 Kd6 36. Nc4+ Kc5 37. Kd3 f5 38. Nd2 fxe4+ 39. Nxe4+ Kxd5 40. Nf6+ Kc5 41. Nxh7 Nd6 42. Nf8 Kb5 43. Nxg6 Kxa5 44. h4 Nf7 45. h5 Kb4 46. Ne7 Kc5 47. Ke4 Kd6 48. Nd5 a5 49. Nc3 Ke6 50. g4 Kf6 51. Kf4 Kg7 52. g5 Nd6 53. Na4 Nc4 54. Kf5 Nd6+ 55. Ke6 Ne4 56. Kf5 Nd6+ 57. Ke5 Nf7+ 58. Kf5 1/2-1/2

[Event "FIDE World Cadets GU12 2022"]
[Site "Batumi"]
[Date "2022.09.19"]
[Round "4.18"]
[White "Rathnayake, R M Dulinma Hemalni"]
[Black "Saparya Ghosh"]
[Result "0-1"]
[ECO "C42"]
[WhiteElo "1321"]
[BlackElo "1563"]
[Annotator "NA RC COMBH"]
[PlyCount "111"]
[EventDate "2022.09.16"]
[EventType "swiss"]
[EventCountry "GEO"]
[SourceTitle "playchess.com"]
[Source "ChessBase"]
[SourceQuality "1"]
[TimeControl "5400+30"]

1. e4 e5 2. Nf3 Nf6 3. Nc3 Bb4 4. a3 Bxc3 5. dxc3 d6 6. Bc4 h6 7. h3 Nbd7 8. b4 Nb6 9. Bd3 Be6 10. Qe2 c6 11. O-O g5 12. Nh2 Qe7 13. a4 Rg8 14. Ng4 Nxg4 15. hxg4 Nd7 16. f3 Nf6 17. Be3 Kf8 18. Qf2 a6 19. Qe2 Kg7 20. b5 axb5 21. axb5 d5 22. exd5 Nxd5 23. c4 Nf6 24. Bf2 Bd7 25. Rfe1 Rxa1 26. Rxa1 cxb5 27. cxb5 Re8 28. Ra7 Bc8 29. c4 e4 30. Bc2 e3 31. Be1 Qc5 32. Ra4 Qd4 33. Bf5 Bxf5 34. gxf5 Nd5 35. cxd5 Qxa4 36. Bc3+ f6 37. d6 Rd8 38. Qd3 Rd7 39. Kf1 Qf4 40. Ke2 Qxd6 41. Qc4 Qd1+ 42. Kxe3 Qg1+ 43. Ke4 Qb1+ 44. Ke3 Qxf5 45. Kf2 Qc2+ 46. Kg3 Qd3 47. Qc8 Qd6+ 48. Kh3 Rc7 49. Bxf6+ Kxf6 50. Qh8+ Kg6 51. Qe8+ Kg7 52. Qe2 Re7 53. Qb2+ Qe5 54. Qc2 Rf7 55. Qb3 h5 56. g4 0-1

[Event "FIDE World Cadets GU12 2022"]
[Site "Batumi"]
[Date "2022.09.19"]
[Round "4.19"]
[White "Krkyasharyan, Sona"]
[Black "Zhumagali, Raian"]
[Result "1/2-1/2"]
[ECO "E92"]
[WhiteElo "1484"]
[BlackElo "1278"]
[Annotator "NA COMBH"]
[PlyCount "110"]
[EventDate "2022.09.16"]
[EventType "swiss"]
[EventCountry "GEO"]
[SourceTitle "playchess.com"]
[Source "ChessBase"]
[SourceQuality "1"]
[TimeControl "5400+30"]

1. d4 {[%emt 0:01:00]} Nf6 {[%emt 0:01:00]} 2. c4 {[%emt 0:00:30]} g6 {[%emt 0:00:30]} 3. Nc3 {[%emt 0:00:30]} Bg7 {[%emt 0:00:30]} 4. e4 {[%emt 0:00:30]} d6 {[%emt 0:00:30]} 5. Nf3 {[%emt 0:00:30]} O-O {[%emt 0:00:30]} 6. Be2 {[%emt 0:00:00]} e5 {[%emt 0:00:00]} 7. d5 {[%emt 0:00:00]} a5 {[%emt 0:00:00]} 8. Bg5 {[%emt 0:00:00]} h6 {[%emt 0:00:30]} 9. Bh4 {[%emt 0:00:00]} Na6 {[%emt 0:00:30]} 10. Nd2 {[%emt 0:00:00]} Qe8 {[%emt 0:12:30]} 11. a3 {[%emt 0:00:00]} Bd7 {[%emt 0:01:30]} 12. b3 {[%emt 0:00:00]} Nh7 {[%emt 0:04:30]} 13. Rb1 {[%emt 0:00:00]} Nc5 {[%emt 0:03:30]} 14. Qc2 {[%emt 0:00:00]} f5 {[%emt 0:17:30]} 15. f3 {[%emt 0:00:00]} Nf6 {[%emt 0:03:30]} 16. b4 {[%emt 0:00:00]} axb4 {[%emt 0:04:30]} 17. axb4 {[%emt 0:02:00]} Na4 {[%emt 0:00:30]} 18. Nb5 {[%emt 0:00:00]} Bxb5 {[%emt 0:05:30]} 19. cxb5 {[%emt 0:00:00]} Qd7 {[%emt 0:01:30]} 20. O-O {[%emt 0:00:30]} Nb6 {[%emt 0:06:30]} 21. Rfc1 {[%emt 0:00:30]} Rfc8 {[%emt 0:01:30]} 22. Bf2 {[%emt 0:02:30]} f4 {[%emt 0:09:30]} 23. Rb3 {[%emt 0:00:30]} Ne8 {[%emt 0:02:30]} 24. Rc3 {[%emt 0:05:30]} Na4 {[%emt 0:02:30]} 25. Ra3 {[%emt 0:00:30]} Nb6 {[%emt 0:00:30]} 26. Ra5 {[%emt 0:01:30]} Qd8 {[%emt 0:04:45]} 27. Rca1 {[%emt 0:03:30]} Nd7 {[%emt 0:03:12]} 28. Qa2 {[%emt 0:03:30]} Rab8 {[%emt 0:00:46]} 29. Rc1 {[%emt 0:10:30]} b6 {[%emt 0:00:17]} 30. Ra6 {[%emt 0:02:30]} Ndf6 {[%emt 0:00:55]} 31. Qc2 {[%emt 0:02:30]} g5 {[%emt 0:00:46]} 32. Ra3 {[%emt 0:01:30]} Qd7 {[%emt 0:02:29]} 33. Qc6 {[%emt 0:02:30]} Qf7 {[%emt 0:01:03]} 34. Rca1 {[%emt 0:02:30]} h5 {[%emt 0:01:51]} 35. Ra7 {[%emt 0:07:30]} Qg6 {[%emt 0:02:48]} 36. Rb7 {[%emt 0:01:30]} Rxb7 {[%emt 0:00:30]} 37. Qxb7 {[%emt 0:00:30]} Rd8 {[%emt 0:00:53]} 38. Ra7 {[%emt 0:06:30]} Rd7 {[%emt 0:03:39]} 39. Qc8 {[%emt 0:04:30]} Rf7 {[%emt 0:01:56]} 40. Ra8 {[%emt 0:09:30]} Rf8 {[%emt 0:01:00]} 41. Qe6+ {[%emt 0:02:30]} Kh8 {[%emt 0:00:29]} 42. h3 {[%emt 0:01:30]} Qf7 {[%emt 0:00:30]} 43. Qxf7 {[%emt 0:00:30]} Rxf7 {[%emt 0:00:09]} 44. Ra7 {[%emt 0:00:00]} Kg8 {[%emt 0:00:17]} 45. Nc4 {[%emt 0:01:00]} Nd7 {[%emt 0:00:18]} 46. Rb7 {[%emt 0:01:30]} Bf6 {[%emt 0:01:27]} 47. Na5 {[%emt 0:07:30]} Kf8 {[%emt 0:00:48]} 48. Nc6 {[%emt 0:00:30]} h4 {[%emt 0:00:42]} 49. Kf1 {[%emt 0:00:30]} Kg8 {[%emt 0:00:30]} 50. Ke1 {[%emt 0:00:30]} Kf8 {[%emt 0:00:34]} 51. Kd2 {[%emt 0:00:30]} Kg8 {[%emt 0:00:00]} 52. Ra7 {[%emt 0:01:30]} Rf8 {[%emt 0:00:50]} 53. Kc3 {[%emt 0:00:30]} Rf7 {[%emt 0:00:03]} 54. Ra8 {[%emt 0:00:30]} Rf8 {[%emt 0:00:35]} 55. Rc8 {[%emt 0:00:30]} Kf7 {[%emt 0:00:20]} 1/2-1/2

[Event "FIDE World Cadets GU12 2022"]
[Site "Batumi"]
[Date "2022.09.20"]
[Round "5.1"]
[White "Merkulova, Victoria"]
[Black "Mgeladze, Kesaria"]
[Result "1/2-1/2"]
[ECO "B36"]
[WhiteElo "1715"]
[BlackElo "1771"]
[Annotator "NA RC COMBH"]
[PlyCount "47"]
[EventDate "2022.09.16"]
[EventType "swiss"]
[EventCountry "GEO"]
[SourceTitle "playchess.com"]
[Source "ChessBase"]
[SourceQuality "1"]
[TimeControl "5400+30"]

1. e4 {[%emt 0:01:00]} c5 {[%emt 0:01:00]} 2. Nf3 {[%emt 0:00:00]} g6 {[%emt 0:00:30]} 3. d4 {[%emt 0:03:00]} cxd4 {[%emt 0:00:00]} 4. Nxd4 {[%emt 0:00:30]} Nc6 {[%emt 0:00:00]} 5. c4 {[%emt 0:03:30]} Nf6 {[%emt 0:00:30]} 6. Nc3 {[%emt 0:00:30]} d6 {[%emt 0:00:30]} 7. Be2 {[%emt 0:00:30]} Nxd4 {[%emt 0:00:30]} 8. Qxd4 {[%emt 0:00:30]} Bg7 {[%emt 0:00:00]} 9. Be3 {[%emt 0:02:30]} O-O {[%emt 0:00:00]} 10. Qd2 {[%emt 0:01:30]} Be6 {[%emt 0:00:00]} 11. O-O {[%emt 0:09:30]} Qa5 {[%emt 0:03:00]} 12. Rac1 {[%emt 0:03:30]} Rfc8 {[%emt 0:00:30]} 13. b3 {[%emt 0:02:30]} a6 {[%emt 0:01:30]} 14. f3 {[%emt 0:10:30]} b5 {[%emt 0:16:30]} 15. Nd5 {[%emt 0:10:30]} Qxd2 {[%emt 0:00:30]} 16. Bxd2 {[%emt 0:03:30]} Nxd5 {[%emt 0:01:30]} 17. cxd5 {[%emt 0:04:30]} Bd4+ {[%emt 0:01:30]} 18. Kh1 {[%emt 0:00:30]} Bd7 {[%emt 0:00:00]} 19. Rxc8+ {[%emt 0:06:30]} Rxc8 {[%emt 0:00:00]} 20. Rc1 {[%emt 0:00:00]} Rc5 {[%emt 0:05:30]} 21. a4 {[%emt 0:09:00]} bxa4 {[%emt 0:11:30]} 22. bxa4 {[%emt 0:00:30]} Bxa4 {[%emt 0:01:30]} 23. Bxa6 {[%emt 0:00:30]} Rxc1+ {[%emt 0:03:30]} 24. Bxc1 {[%emt 0:00:30]} 1/2-1/2

[Event "FIDE World Cadets GU12 2022"]
[Site "Batumi"]
[Date "2022.09.20"]
[Round "5.2"]
[White "Maklakova, Naomi"]
[Black "Shubhi Gupta"]
[Result "1/2-1/2"]
[ECO "D02"]
[WhiteElo "1635"]
[BlackElo "1733"]
[Annotator "NA RC COMBH"]
[PlyCount "82"]
[EventDate "2022.09.16"]
[EventType "swiss"]
[EventCountry "GEO"]
[SourceTitle "playchess.com"]
[Source "ChessBase"]
[SourceQuality "1"]
[TimeControl "5400+30"]

1. d4 {[%emt 0:01:00]} d5 {[%emt 0:01:00]} 2. Nf3 {[%emt 0:00:30]} Nf6 {[%emt 0:00:30]} 3. c3 {[%emt 0:01:30]} Bf5 {[%emt 0:02:30]} 4. Qb3 {[%emt 0:02:30]} Qc8 {[%emt 0:02:30]} 5. Bf4 {[%emt 0:07:30]} e6 {[%emt 0:03:30]} 6. e3 {[%emt 0:02:30]} Bd6 {[%emt 0:06:30]} 7. Bb5+ {[%emt 0:15:30]} Nbd7 {[%emt 0:02:30]} 8. Bxd7+ {[%emt 0:18:30]} Nxd7 {[%emt 0:02:30]} 9. Bxd6 {[%emt 0:00:30]} cxd6 {[%emt 0:00:30]} 10. Na3 {[%emt 0:00:30]} Bd3 {[%emt 0:13:30]} 11. Kd2 {[%emt 0:06:30]} Ba6 {[%emt 0:09:30]} 12. Rhe1 {[%emt 0:15:30]} Qc6 {[%emt 0:03:30]} 13. Ng5 {[%emt 0:06:53]} h6 {[%emt 0:01:30]} 14. Nh3 {[%emt 0:00:04]} e5 {[%emt 0:02:30]} 15. Rad1 {[%emt 0:06:27]} O-O {[%emt 0:06:30]} 16. dxe5 {[%emt 0:05:14]} dxe5 {[%emt 0:00:30]} 17. Kc1 {[%emt 0:00:00]} Nc5 {[%emt 0:02:30]} 18. Qc2 {[%emt 0:00:51]} e4 {[%emt 0:04:30]} 19. Nf4 {[%emt 0:00:23]} Bd3 {[%emt 0:02:30]} 20. Nxd3 {[%emt 0:01:44]} Nxd3+ {[%emt 0:00:30]} 21. Rxd3 {[%emt 0:00:30]} exd3 {[%emt 0:00:30]} 22. Qxd3 {[%emt 0:00:00]} Rfd8 {[%emt 0:00:00]} 23. Nc2 {[%emt 0:00:01]} Rab8 {[%emt 0:11:00]} 24. Nd4 {[%emt 0:00:42]} Qc7 {[%emt 0:00:30]} 25. f4 {[%emt 0:03:33]} b5 {[%emt 0:00:30]} 26. Kb1 {[%emt 0:02:14]} Qb6 {[%emt 0:03:10]} 27. a3 {[%emt 0:01:42]} a5 {[%emt 0:00:30]} 28. Nc2 {[%emt 0:00:00]} Qc5 {[%emt 0:00:59]} 29. g4 {[%emt 0:00:12]} f6 {[%emt 0:05:40]} 30. h4 {[%emt 0:00:35]} Qc4 {[%emt 0:00:30]} 31. Qxc4 {[%emt 0:00:55]} bxc4 {[%emt 0:00:32]} 32. Nd4 {[%emt 0:00:09]} g6 {[%emt 0:00:51]} 33. Nc6 {[%emt 0:00:17]} Kf7 {[%emt 0:02:21]} 34. Rd1 {[%emt 0:00:57]} Rbc8 {[%emt 0:02:20]} 35. Nxd8+ {[%emt 0:01:06]} Rxd8 {[%emt 0:00:04]} 36. e4 {[%emt 0:00:24]} Ke6 {[%emt 0:00:04]} 37. Kc2 {[%emt 0:00:52]} f5 {[%emt 0:01:15]} 38. gxf5+ {[%emt 0:00:30]} gxf5 {[%emt 0:00:00]} 39. exd5+ {[%emt 0:00:46]} Rxd5 {[%emt 0:00:00]} 40. Rd4 {[%emt 0:00:24]} Rxd4 {[%emt 0:04:12]} 41. cxd4 {[%emt 0:00:01]} Kd6 {[%emt 0:00:57]} 1/2-1/2

[Event "FIDE World Cadets GU12 2022"]
[Site "Batumi"]
[Date "2022.09.20"]
[Round "5.3"]
[White "Aydogan, Arya"]
[Black "Altynbek, Aiaru"]
[Result "1-0"]
[ECO "C11"]
[WhiteElo "1489"]
[BlackElo "1373"]
[Annotator "NA RC COMBH"]
[PlyCount "123"]
[EventDate "2022.09.16"]
[EventType "swiss"]
[EventCountry "GEO"]
[SourceTitle "playchess.com"]
[Source "ChessBase"]
[SourceQuality "1"]
[TimeControl "5400+30"]

1. e4 e6 2. d4 d5 3. Nc3 Nf6 4. e5 Nfd7 5. f4 c5 6. Nf3 Nc6 7. Be3 Qb6 8. a3 c4 9. Rb1 Qa6 10. Be2 Nb6 11. O-O Bd7 12. Qd2 O-O-O 13. Ng5 Be8 14. f5 h6 15. Nh3 Ne7 16. fxe6 fxe6 17. Bg4 Na8 18. Nf4 Nc7 19. h4 Ng6 20. g3 Be7 21. Nce2 Kb8 22. Rf2 Nxf4 23. Nxf4 h5 24. Bh3 g5 25. hxg5 Bxg5 26. Ng2 Bxe3 27. Nxe3 Rg8 28. Kh2 Qb6 29. c3 Bg6 30. Re1 Qc6 31. Rf6 Qe8 32. Ref1 Qe7 33. R1f4 Qg7 34. Qf2 Rde8 35. Ng2 a6 36. Nh4 Be4 37. Rf7 Qg5 38. Bg2 Bd3 39. Rd7 Rd8 40. Rff7 Rxd7 41. Rxd7 Be4 42. Rf7 Rg7 43. Rxg7 Qxg7 44. Qf6 Qg8 45. Bh3 Kc8 46. Bg2 Qg4 47. Nf3 Ne8 48. Qf4 Qg6 49. Nh4 Qh7 50. Bh3 Kd7 51. Qf8 Bd3 52. Bxe6+ Kxe6 53. Qxe8+ Qe7 54. Qg8+ Kd7 55. Qxd5+ Kc8 56. e6 Bf1 57. Qf5 Bd3 58. Qe5 Bc2 59. d5 Bd3 60. d6 Qh7 61. d7+ Kd8 62. Qb8+ 1-0

[Event "FIDE World Cadets GU12 2022"]
[Site "Batumi"]
[Date "2022.09.20"]
[Round "5.4"]
[White "Aravindakshan, Sahana"]
[Black "Kaliakhmet, Elnaz"]
[Result "0-1"]
[ECO "E20"]
[WhiteElo "1776"]
[BlackElo "1864"]
[Annotator "NA COMBH"]
[PlyCount "80"]
[EventDate "2022.09.16"]
[EventType "swiss"]
[EventCountry "GEO"]
[SourceTitle "playchess.com"]
[Source "ChessBase"]
[SourceQuality "1"]
[TimeControl "5400+30"]

1. d4 {[%emt 0:01:00]} Nf6 {[%emt 0:01:00]} 2. c4 {[%emt 0:00:00]} e6 {[%emt 0:00:30]} 3. Nc3 {[%emt 0:00:00]} Bb4 {[%emt 0:00:00]} 4. f3 {[%emt 0:00:30]} d5 {[%emt 0:00:00]} 5. a3 {[%emt 0:00:30]} Be7 {[%emt 0:00:30]} 6. e3 {[%emt 0:00:00]} c5 {[%emt 0:01:30]} 7. cxd5 {[%emt 0:03:00]} exd5 {[%emt 0:01:30]} 8. Bb5+ {[%emt 0:04:30]} Nc6 {[%emt 0:03:30]} 9. Nge2 {[%emt 0:00:30]} O-O {[%emt 0:02:30]} 10. O-O {[%emt 0:00:30]} a6 {[%emt 0:04:30]} 11. Ba4 {[%emt 0:03:30]} Bd6 {[%emt 0:08:30]} 12. Bb3 {[%emt 0:10:30]} Ne7 {[%emt 0:22:30]} 13. dxc5 {[%emt 0:11:30]} Bxc5 {[%emt 0:00:30]} 14. Nd4 {[%emt 0:02:30]} Nc6 {[%emt 0:01:30]} 15. Nce2 {[%emt 0:01:30]} Re8 {[%emt 0:03:30]} 16. Qc2 {[%emt 0:10:30]} Qb6 {[%emt 0:02:30]} 17. Qc3 {[%emt 0:04:30]} Bd7 {[%emt 0:04:30]} 18. Ba2 {[%emt 0:02:30]} a5 {[%emt 0:08:30]} 19. Bd2 {[%emt 0:05:30]} Rac8 {[%emt 0:00:30]} 20. Rac1 {[%emt 0:01:30]} Bf8 {[%emt 0:08:30]} 21. Qb3 {[%emt 0:06:30]} Qa6 {[%emt 0:01:30]} 22. Kf2 {[%emt 0:05:30]} Ne5 $15 {[%emt 0:06:05]} 23. Rxc8 Rxc8 24. Nf4 Nc4 25. Bc1 b5 26. Qd3 Bd6 27. Nde2 Qb7 28. Bb1 g6 29. Qd1 a4 30. Ba2 h5 31. Bxc4 Rxc4 32. Bd2 Qb6 33. Nd3 Bf5 34. Bc3 Bxh2 35. g3 h4 36. Rh1 Bxg3+ 37. Nxg3 hxg3+ 38. Kg2 Nh5 39. Ne5 Qxe3 40. Rf1 Rh4 0-1

[Event "FIDE World Cadets GU12 2022"]
[Site "Batumi"]
[Date "2022.09.20"]
[Round "5.5"]
[White "Saparya Ghosh"]
[Black "Preobrazhenskaya, Diana"]
[Result "1-0"]
[ECO "D36"]
[WhiteElo "1563"]
[BlackElo "1994"]
[Annotator "TA"]
[PlyCount "87"]
[EventDate "2022.09.16"]
[EventType "swiss"]
[EventCountry "GEO"]
[SourceTitle "playchess.com"]
[Source "ChessBase"]
[SourceQuality "1"]
[TimeControl "5400+30"]

{[%evp 23,87,44,45,32,54,48,108,65,90,82,95,64,106,41,92,73,70,77,73,76,73,41,101,101,110,90,100,89,93,100,153,93,85,113,109,0,180,154,175,172,337,320,447,247,1267,1239,1071,623,12840,12840,12841,12841,12841,12677,12842,5804,12844,12845,29992,12842,12843,0,29994,29995,29996,29997]} 1. d4 {[%emt 0:01:00]} d5 {[%emt 0:01:00]} 2. c4 {[%emt 0:00:30]} e6 {[%emt 0:00:30]} 3. Nc3 {[%emt 0:00:30]} Nf6 {[%emt 0:00:00]} 4. cxd5 {[%emt 0:01:30]} exd5 {[%emt 0:00:00]} 5. Bg5 {[%emt 0:00:00]} c6 {[%emt 0:01:30]} 6. e3 {[%emt 0:00:00]} Bd6 {[%emt 0:00:30]} 7. Bd3 {[%emt 0:01:30]} Nbd7 {[%emt 0:04:30]} 8. Qc2 {[%emt 0:05:30]} h6 {[%emt 0:00:30]} 9. Bh4 {[%emt 0:01:30]} O-O {[%emt 0:03:30]} 10. Nf3 {[%emt 0:11:30]} Re8 {[%emt 0:18:30]} 11. O-O {[%emt 0:00:30]} Qc7 {[%emt 0:03:30]} 12. Rac1 {[%emt 0:02:30]} a6 {[%emt 0:03:30]} 13. Bf5 {[%emt 0:02:30] [#] D36: Queen's Gambit Declined: Exchange Variation: Main line (5 Bg5 c6 6 Qc2).} Qb8 $146 {[%emt 0:08:30]} ({Predecessor:} 13... Kf8 14. Bxd7 Qxd7 15. Na4 Qf5 16. Qb3 Rb8 17. Bg3 Bxg3 18. hxg3 Ke7 19. Nc5 {0-1 (19) Mejia Rodriguez,Y (1867)-Rivera,I (2197) Palmira 2019}) 14. Rfe1 {[%emt 0:09:30]} b5 {[%emt 0:13:30]} (14... g5 $14) 15. a3 {[%emt 0:09:30] White is better.} b4 {[%emt 0:04:30]} 16. axb4 {[%emt 0:02:30]} Bxb4 {[%emt 0:00:30]} 17. Bg3 {[%emt 0:04:30]} Qa7 {[%emt 0:02:30]} 18. Qa4 {[%emt 0:06:30]} (18. Red1 $16) 18... Nb6 {[%emt 0:09:30]} (18... Qb7) ({Black should try} 18... a5 $14) 19. Qxb4 {[%emt 0:02:30]} Bxf5 {[%emt 0:00:30]} 20. Ne5 {[%emt 0:00:30][%cal Bf3e5,Be5c6,Bc6e7][%mdl 32] Inhibits Nc4.} Rec8 {[%emt 0:03:30]} 21. Na4 {[%emt 0:01:30]} Nxa4 {[%emt 0:04:48]} 22. Qxa4 {[%emt 0:12:30]} Bd7 (22... c5 $14) 23. Nxc6 $16 Qb7 {[%csl LRb2,LRc6][%cal Rd7c6]} 24. Ne7+ Kh7 25. Qa3 Rxc1 26. Rxc1 Ne4 (26... Qb5 $142) 27. f3 (27. Be5 $142 $1) 27... Nxg3 28. hxg3 Re8 29. Qd6 (29. Kh2 $16) 29... Be6 $2 {[#] White leaves nothing to chance now.} (29... Qxb2 $11 {and Black has nothing to worry.} 30. Qxd7 Qxc1+ 31. Kh2 Rb8) 30. Rc7 $1 $18 Qxb2 {[%cal Oe6h3] Strongly threatening ...Bh3!} 31. Nxd5 {Active counter play!} Qd2 $2 (31... Bxd5 32. Qxd5 Qb1+ 33. Kf2 (33. Kh2 Rxe3 34. Qxf7 Qg6 $16) 33... Qb2+ 34. Kg1 Qb1+ 35. Kh2 Rxe3) 32. Kh2 {And now Nf4 would win.} a5 33. Qc6 (33. Nf4 $142) 33... Rb8 $2 {[#]} (33... Bxd5 34. Qxd5 (34. Qxe8 {gets mated.} Bxf3) 34... Qxe3 35. Qf5+ (35. Rxf7 Qe6 $16) (35. Qxf7 Rg8 $18) (35. Qxa5 Qe6 $16) 35... Kh8 36. Qxf7 Rg8) 34. Nf6+ $1 {[%mdl 512]} Kh8 35. d5 {[%cal Bd4d5,Bd5e6,Be6f7][%mdl 32]} gxf6 36. dxe6 Qxe3 37. exf7 {[%mdl 4096] Endgame KQR-KQR} Rf8 38. Qxf6+ Kh7 39. Re7 (39. f4 $142 Qe4 40. Rc6 Qxc6 41. Qxc6 Rxf7 42. f5) 39... Qc5 40. Re5 Qd4 41. Qe7 (41. Qf5+ $142 Kh8 {[#]} 42. Qg6 $1 Qb6 43. Qxb6 Kg7 44. Re6 Rxf7 45. Rg6+ Kh7 46. Qe6 Kh8 47. Qxf7 h5 48. Rh6#) 41... Qb4 42. Qf6 $2 ({White should play} 42. Rc5 $18 Qxc5 43. Qxc5) 42... Qd2 $2 {[%mdl 8192]} (42... Qd4 $11 43. Qf5+ Kh8 44. Qg6 Qd6 45. Qxd6 Kg7 46. Re6 Rxf7 47. Rg6+ Kh8 48. Qd8+ Rf8 49. Qxf8+ Kh7 50. Rxh6#) 43. Rh5 a4 44. f4 {Weighted Error Value: White=0.77/Black=0.81} 1-0